[Event "Azerbaijan-ch 1st League 2025"]
[Site "Baku"]
[Date "2025.01.07"]
[Round "2.11"]
[White "Ahmad, Khagan"]
[Black "Gulumov, Muthat"]
[Result "1-0"]
[Annotator "TA"]
[ECO "E97"]
[WhiteElo "2406"]
[BlackElo "2054"]
[PlyCount "106"]
[EventDate "2025.01.05"]
[EventType "swiss"]
[EventCountry "AZE"]
[SourceTitle "playchess.com"]
[Source "ChessBase"]
[SourceQuality "1"]
[TimeControl "40/5400+30:1800+30"]

{[%evp 21,106,25,16,18,29,24,43,51,56,55,79,75,83,73,73,27,31,22,22,25,27,17,22,6,12,8,11,17,11,5,8,8,39,22,41,36,44,45,106,106,106,106,106,62,156,104,330,356,345,355,370,366,362,193,173,182,1331,1329,1215,1127,1403,1376,1394,1320,1529,1445,1193,941,2011,1783,29972,29970,29975,29976,29976,29977,29977,29978,29978,29979,29979,29979,29980,29981,29982,29983,29983]} 1. Nf3 {[%emt 0:00:20]} Nf6 {[%emt 0:00:07]} 2. c4 {[%emt 0:00:06]} g6 {[%emt 0:00:04]} 3. Nc3 {[%emt 0:00:07]} Bg7 {[%emt 0:00:04]} 4. e4 {[%emt 0:00:05]} d6 {[%emt 0:00:04]} 5. d4 {[%emt 0:00:05]} O-O {[%emt 0:00:05]} 6. Be2 {[%emt 0:00:03]} e5 {[%emt 0:00:05]} 7. O-O {[%emt 0:00:06]} Nc6 {[%emt 0:00:02]} 8. d5 {[%emt 0:00:06]} Ne7 {[%emt 0:00:05]} 9. b4 {[%emt 0:00:48][%cal Bb2b4,Bb4b5][%mdl 32]} Nh5 {[%emt 0:00:05]} 10. g3 {[%emt 0:01:24]} f5 {[%emt 0:01:10]} 11. Ng5 {[%emt 0:06:18]} Nf6 {[%emt 0:00:13]} 12. Bf3 {[%emt 0:01:31]} c6 {[%emt 0:00:23]} 13. b5 {[%emt 0:12:19]} h6 {[%emt 0:02:26]} 14. Ne6 {[%emt 0:00:05] White is slightly better.} Bxe6 {[%emt 0:00:05]} 15. dxe6 {[%emt 0:00:04]} fxe4 {[%emt 0:00:05]} 16. Nxe4 {[%emt 0:00:15]} Nxe4 {[%emt 0:00:05]} 17. Bxe4 {[%emt 0:00:03]} d5 {[%emt 0:00:04]} 18. cxd5 {[%emt 0:00:44] White is more active.} (18. Bg2 $16) 18... cxd5 $11 {[%emt 0:00:03] [#]} 19. Ba3 $1 {[%emt 0:00:37] Strongly threatening Bxe7.} dxe4 {[%emt 0:00:45]} 20. Qxd8 {[%emt 0:00:05]} Rfxd8 {[%emt 0:00:06]} 21. Bxe7 {[%emt 0:00:06]} Re8 {[%emt 0:00:05]} 22. Bb4 {[%emt 0:00:59]} Rxe6 {[%emt 0:00:13]} 23. Bc5 {[%emt 0:19:04]} b6 {[%emt 0:08:41]} 24. Be3 {[%emt 0:00:02]} Rc8 {[%emt 0:00:15]} 25. Rac1 {[%emt 0:00:56]} Rxc1 {[%emt 0:03:06]} 26. Rxc1 {[%emt 0:00:10][%mdl 4096] Endgame. Hoping for Rc7. KRB-KRB} Bf8 {[%emt 0:00:44]} 27. Rc4 {[%emt 0:02:50]} Kf7 {[%emt 0:01:15]} 28. Rxe4 {[%emt 0:00:19]} Re7 {[%emt 0:03:33]} 29. Rc4 {[%emt 0:06:03]} Rd7 {[%emt 0:01:28] [#]} ({Black should play} 29... h5 $14) 30. Kg2 $1 $16 {[%emt 0:00:24]} h5 {[%emt 0:02:48]} 31. Kf3 {[%emt 0:00:32]} Ke6 {[%emt 0:03:12]} 32. Ke4 {[%emt 0:00:43] Inhibits Rd3.} Bd6 {[%emt 0:02:31]} (32... Bc5 $1 $14) 33. Rc8 {[%emt 0:25:49]} (33. Rc6 $142) 33... Rc7 $2 {[%emt 0:00:38] This costs Black the game.} (33... a6 $16) 34. Rxc7 $18 {[%emt 0:19:26]} Bxc7 {[%emt 0:00:09] KB-KB} 35. f3 {[%emt 0:05:26]} Bd6 {[%emt 0:01:23]} 36. h3 {[%emt 0:00:00]} Be7 {[%emt 0:01:18]} 37. g4 {[%emt 0:00:00]} (37. Bd2 $142 {aiming for Bc1.} Bd8 38. Bb4) 37... hxg4 {[%emt 0:02:48]} 38. fxg4 {[%emt 0:01:30] And now Bf2 would win.} g5 $2 {[%emt 0:02:33]} (38... Bh4 39. Bd2 Bd8) 39. Bf2 {[%emt 0:00:00]} Kd6 {[%emt 0:01:28]} 40. Bg1 {[%emt 0:00:00]} Ke6 {[%emt 0:00:00]} 41. Bh2 {[%emt 0:00:00]} Bf6 {[%emt 0:14:13]} 42. Bg3 {[%emt 0:00:00]} Kd6 {[%emt 0:02:27]} 43. Kf5 {[%emt 0:00:53]} Bg7 {[%emt 0:00:38]} 44. Be1 {[%emt 0:12:21]} Kc5 {[%emt 0:03:51]} 45. Bc3 {[%emt 0:00:10]} Kxb5 {[%emt 0:00:16]} 46. Bxe5 {[%emt 0:00:45] White mates.} Bxe5 {[%emt 0:00:50]} 47. Kxe5 {[%emt 0:00:03] K3P-K3P} Kc5 {[%emt 0:00:35]} 48. Kf5 {[%emt 0:00:02]} b5 {[%emt 0:00:18][%cal Bb6b5,Bb5b4][%mdl 32]} 49. Kxg5 {[%emt 0:00:02]} a5 {[%emt 0:00:09][%cal Ba7a5,Ba5a4,Ba4a3][%mdl 32]} 50. Kf4 {[%emt 0:00:04]} b4 {[%emt 0:00:14]} 51. Ke3 {[%emt 0:00:19]} a4 {[%emt 0:01:33]} 52. Kd3 {[%emt 0:00:06]} a3 {[%emt 0:00:06] [#]} 53. Kc2 $1 {[%emt 0:00:03]} Kd5 {[%emt 1:17:36] Weighted Error Value: White=0.11 (very precise) /Black=0.35.  Loses game:     	---       	Black=1      Mistake:       	White=3     	Black=3      Inaccurate:     	White=1     	Black=1      OK:         	White=8     	Black=10     Best:        	White=2     	Black=2      Strong:       	White=1     	---} 1-0

[Event "Azerbaijan-ch 1st League 2025"]
[Site "Baku"]
[Date "2025.01.07"]
[Round "2.12"]
[White "Ibrahimli, Suat"]
[Black "Alizada, Pasham"]
[Result "1/2-1/2"]
[Annotator "TA"]
[ECO "D75"]
[WhiteElo "1949"]
[BlackElo "2117"]
[PlyCount "167"]
[EventDate "2025.01.05"]
[EventType "swiss"]
[EventCountry "AZE"]
[SourceTitle "playchess.com"]
[Source "ChessBase"]
[SourceQuality "1"]
[TimeControl "40/5400+30:1800+30"]

{[%evp 54,167,502,81,76,76,79,29,31,24,24,34,32,-8,-8,-8,-8,-14,-1,-8,-7,-13,-8,-12,-12,-20,-12,-20,-20,-20,-8,-8,-6,-8,0,-12,0,-5,-5,-6,-6,-7,0,0,0,-8,-12,-12,-12,-12,0,-12,0,0,0,-8,0,0,0,0,0,0,0,0,0,0,0,0,0,0,0,0,0,0,0,0,0,0,0,0,0,0,0,0,0,0,0,0,0,0,0,0,0,0,0,0,0,0,0,0,0,0,0,0,0,0,0,0,0,0,0,0,0,0,0,0]} 1. d4 {[%emt 0:12:17]} Nf6 {[%emt 0:00:08]} 2. c4 {[%emt 0:00:37]} g6 {[%emt 0:00:40]} 3. Nc3 {[%emt 0:00:19]} d5 {[%emt 0:00:06]} 4. cxd5 {[%emt 0:00:21]} Nxd5 {[%emt 0:00:01]} 5. g3 {[%emt 0:00:11]} Bg7 {[%emt 0:00:03]} 6. Bg2 {[%emt 0:00:06]} Nxc3 {[%emt 0:00:13]} 7. bxc3 {[%emt 0:00:23]} c5 {[%emt 0:00:01]} 8. Nf3 {[%emt 0:00:07]} Nc6 {[%emt 0:00:27]} 9. Be3 {[%emt 0:00:04]} O-O {[%emt 0:02:22]} 10. O-O {[%emt 0:00:22]} cxd4 {[%emt 0:00:01]} 11. cxd4 {[%emt 0:00:11]} Be6 {[%emt 0:00:10]} 12. Rb1 {[%emt 0:01:37]} b6 {[%emt 0:04:39]} 13. Qa4 {[%emt 0:10:42]} Bd5 {[%emt 0:02:12]} 14. Rfd1 {[%emt 0:00:40]} Rc8 {[%emt 0:28:20]} 15. Rbc1 {[%emt 0:07:13]} Na5 {[%emt 0:12:38]} 16. Bd2 {[%emt 1:03:20]} Nc4 {[%emt 0:03:19]} 17. Bc3 {[%emt 0:00:00]} f5 {[%emt 0:08:53]} 18. Qb5 {[%emt 0:00:00]} Bh6 {[%emt 0:11:20]} 19. Bd2 {[%emt 0:00:00]} Bg7 {[%emt 0:08:25]} 20. Bg5 {[%emt 0:00:00]} a6 {[%emt 0:09:31]} 21. Qxa6 {[%emt 0:01:21]} h6 {[%emt 0:00:31]} 22. Ne5 {[%emt 0:00:52]} Bxg2 {[%emt 0:01:04]} 23. Kxg2 {[%emt 0:01:17]} Qd5+ {[%emt 0:01:03]} 24. Kg1 {[%emt 0:00:00]} hxg5 {[%emt 0:04:50]} 25. Nxc4 {[%emt 0:00:00]} Qe6 {[%emt 0:00:34]} 26. Qxb6 {[%emt 0:00:35]} Qxe2 {[%emt 0:00:34]} 27. Re1 {[%emt 0:00:04]} Qd3 {[%emt 0:00:36]} (27... Qxa2 28. Rxe7 Bf6 29. Ra7 (29. Qe6+ Kh8 $11) 29... Rxc4 30. Rxa2 $18) (27... Qh5 {might work better.}) 28. Qxg6 $2 {[%emt 0:00:04]} (28. Ne5 $18 Bxe5 29. Qxg6+ (29. dxe5 Kg7 $16) 29... Kh8 30. Qh6+ (30. dxe5 Rxc1 31. Qh6+ Kg8 $18) 30... Kg8 31. dxe5 Rxc1 32. Qxg5+ (32. Rxc1 Qd2 $18) 32... Kh8 33. Rxc1) 28... Rf6 $16 {[%emt 0:00:17]} 29. Ne5 {[%emt 0:00:24]} Rxc1 {[%emt 0:00:51]} 30. Qe8+ {[%emt 0:00:10]} (30. Nxd3 $2 Rxe1+ (30... Rxg6 31. Nxc1 Bxd4 32. Rxe7 $16) 31. Nxe1 Rxg6 $19) ({White should try} 30. Rxc1 $16 {White threatens Rc8+ and mate.} Rxg6 31. Nxd3 Bxd4 32. Rc8+ Kf7 33. Rc4) 30... Rf8 $11 {[%emt 0:00:01]} 31. Qxf8+ {[%emt 0:00:06]} (31. Nxd3 $2 {is the wrong capture.} Rxe1+ (31... Rxe8 32. Rxc1 Bxd4 33. a4 $14) 32. Nxe1 Rxe8 $19) 31... Kxf8 {[%emt 0:00:06]} 32. Nxd3 {[%emt 0:00:09]} Rc2 $1 {[%emt 0:00:21]} 33. a4 {[%emt 0:00:17]} Bxd4 {[%emt 0:00:16]} 34. Rd1 {[%emt 0:02:08]} Ra2 {[%emt 0:00:33]} 35. h3 {[%emt 0:01:28]} Rxa4 {[%emt 0:00:44]} 36. Rd2 {[%emt 0:00:28]} Kf7 {[%emt 0:00:17]} 37. Kg2 {[%emt 0:00:07]} Kf6 {[%emt 0:00:47]} 38. f3 {[%emt 0:00:43]} Ra3 {[%emt 0:00:28]} 39. Nf2 {[%emt 0:00:15]} Bc5 {[%emt 0:01:23]} 40. Re2 {[%emt 0:00:00]} e6 {[%emt 0:00:00]} 41. g4 {[%emt 0:00:49]} Be3 {[%emt 0:02:31]} 42. Nh1 {[%emt 0:00:15]} Rb3 {[%emt 0:03:32]} 43. Ng3 {[%emt 0:00:22]} Rd3 {[%emt 0:00:27]} 44. Re1 {[%emt 0:01:01]} Rb3 {[%emt 0:06:17]} 45. Re2 {[%emt 0:00:12]} Bd4 {[%emt 0:00:52]} 46. Nh5+ {[%emt 0:00:14]} Kf7 {[%emt 0:00:05]} 47. Ng3 {[%emt 0:00:06]} Kf6 {[%emt 0:00:17]} 48. Nh5+ {[%emt 0:00:07]} Kf7 {[%emt 0:00:08]} 49. Ng3 {[%emt 0:00:05]} Rb5 {[%emt 0:00:02]} 50. Rd2 {[%emt 0:00:32]} Be3 {[%emt 0:00:29]} 51. Re2 {[%emt 0:00:04]} Bb6 {[%emt 0:00:10]} 52. Nh1 {[%emt 0:00:23]} Rb1 {[%emt 0:00:55]} 53. Ng3 {[%emt 0:01:09]} Rb5 {[%emt 0:00:02]} 54. Rd2 {[%emt 0:00:26]} Kf6 {[%emt 0:02:20]} 55. Nh5+ {[%emt 0:00:08]} Ke5 {[%emt 0:00:53]} 56. Re2+ {[%emt 0:00:12]} Kd4 {[%emt 0:01:40]} 57. Ng3 {[%emt 0:11:01]} (57. Rxe6 Rb2+ 58. Kf1 Rb1+ 59. Re1 Rxe1+ 60. Kxe1 Ke3) 57... Kd3 {[%emt 0:04:55]} 58. Rxe6 {[%emt 0:03:55]} ({But not} 58. gxf5 exf5 59. Ra2 Ba5 $14) 58... f4 {[%emt 0:04:06]} 59. Nf5 {[%emt 0:01:47]} Rb2+ {[%emt 0:01:38]} 60. Kh1 {[%emt 0:00:11]} Rb1+ {[%emt 0:01:49]} 61. Kh2 {[%emt 0:00:07]} Rb2+ {[%emt 0:00:03]} 62. Kh1 {[%emt 0:00:05]} Bf2 {[%emt 0:01:26]} 63. Re8 {[%emt 0:02:07]} Ra2 {[%emt 0:01:30]} 64. Re6 {[%emt 0:02:16]} Rc2 {[%emt 0:01:39]} 65. Re8 {[%emt 0:00:33]} Rb2 {[%emt 0:00:06]} 66. Re6 {[%emt 0:00:05]} Ra2 {[%emt 0:00:34]} 67. Re8 {[%emt 0:00:19]} Ra1+ {[%emt 0:00:53]} 68. Kh2 {[%emt 0:00:44]} Bg1+ {[%emt 0:00:05]} 69. Kg2 {[%emt 0:00:13]} Be3 {[%emt 0:00:20]} 70. Rd8+ {[%emt 0:00:40]} Ke2 {[%emt 0:00:28]} 71. Nd4+ {[%emt 0:00:45]} Bxd4 {[%emt 0:00:08]} 72. Rxd4 {[%emt 0:00:09]} Ke3 {[%emt 0:04:13]} 73. Re4+ {[%emt 0:00:07]} Kd3 $1 {[%emt 0:00:02]} 74. Re5 {[%emt 0:00:08]} (74. h4 $5 Ra2+ $8 75. Kg1 gxh4 76. Kh1 $11 (76. Rxf4 Ke3 $11)) 74... Ra2+ {[%emt 0:00:03]} 75. Kg1 {[%emt 0:00:04]} Ra1+ {[%emt 0:01:31]} 76. Kg2 {[%emt 0:00:34]} Ra2+ {[%emt 0:00:01]} 77. Kg1 {[%emt 0:00:10]} Kd4 {[%emt 0:00:17]} 78. Re4+ {[%emt 0:00:06]} Kd3 {[%emt 0:00:46]} 79. Re5 {[%emt 0:00:03]} Rb2 {[%emt 0:00:42]} 80. Re6 {[%emt 0:00:16]} Rb1+ {[%emt 0:00:22]} 81. Kg2 {[%emt 0:00:45]} Rb2+ {[%emt 0:00:03]} 82. Kg1 {[%emt 0:00:03]} Rb3 {[%emt 0:00:05]} 83. Kg2 {[%emt 0:00:05]} Rb2+ {[%emt 0:01:13]} 84. Kg1 {[%emt 0:02:10]} 1/2-1/2

[Event "Azerbaijan-ch 1st League 2025"]
[Site "Baku"]
[Date "2025.01.07"]
[Round "2.13"]
[White "Alizada, Agshin"]
[Black "Salimov, Shovkat"]
[Result "1-0"]
[Annotator "TA"]
[ECO "E17"]
[WhiteElo "2116"]
[BlackElo "1977"]
[PlyCount "124"]
[EventDate "2025.01.05"]
[EventType "swiss"]
[EventCountry "AZE"]
[SourceTitle "playchess.com"]
[Source "ChessBase"]
[SourceQuality "1"]
[TimeControl "40/5400+30:1800+30"]

{[%evp 25,124,33,26,9,14,20,27,8,22,22,25,0,28,39,25,19,25,-13,0,-15,0,-4,19,-28,10,18,35,-39,-26,-65,-51,-56,16,-34,-39,-33,-18,-37,0,-151,-139,-125,-115,-110,-118,-147,-121,-163,-60,-60,-58,-54,-56,-147,-138,-113,-67,-68,-81,-265,-264,-254,-270,-397,-354,-327,-181,-389,-234,-224,-221,-248,-144,-143,-149,-234,-119,-131,-119,-132,-127,-119,-131,-122,-156,-204,-212,-197,-153,-199,-191,-363,6,0,0,1,19,35,30,30,118]} 1. d4 {[%emt 0:11:09]} Nf6 {[%emt 0:00:18]} 2. Nf3 {[%emt 0:00:06]} e6 {[%emt 0:00:06]} 3. g3 {[%emt 0:00:38]} b6 {[%emt 0:01:22]} 4. Bg2 {[%emt 0:00:05]} Bb7 {[%emt 0:00:04]} 5. O-O {[%emt 0:00:04]} Be7 {[%emt 0:00:12]} 6. c4 {[%emt 0:00:24]} O-O {[%emt 0:00:28]} 7. Re1 {[%emt 0:03:15]} d5 {[%emt 0:05:42]} 8. cxd5 {[%emt 0:01:29]} exd5 {[%emt 0:02:57]} 9. Bf4 {[%emt 0:00:06]} Nh5 {[%emt 0:04:37]} 10. Bc1 {[%emt 0:01:05]} Nf6 {[%emt 0:00:24][%cal Bh5f6,Bf6e4,Be4c3][%mdl 32]} 11. Nc3 {[%emt 0:12:15]} c5 {[%emt 0:04:18]} 12. Bf4 {[%emt 0:04:24]} Nc6 {[%emt 0:21:56][%cal Bb8c6,Bc6a5,Ba5c4][%mdl 32]} 13. Rc1 {[%emt 0:01:59]} Ne4 {[%emt 0:06:07]} 14. dxc5 {[%emt 0:08:31]} Nxc3 $1 {[%emt 0:00:35]} 15. Rxc3 {[%emt 0:00:05]} bxc5 {[%emt 0:09:36]} 16. Rc1 {[%emt 0:08:24]} Re8 {[%emt 0:07:47]} 17. Qb3 {[%emt 0:04:48]} Na5 {[%emt 0:01:01]} 18. Qc2 {[%emt 0:00:04][%cal Oe2e4]} Nc4 {[%emt 0:04:32]} 19. Red1 {[%emt 0:01:34]} Nb6 {[%emt 0:02:26]} 20. h4 {[%emt 0:15:41]} h6 {[%emt 0:03:31]} 21. Kh2 {[%emt 0:08:13]} Bf8 {[%emt 0:08:39]} 22. e3 {[%emt 0:07:28]} Qf6 {[%emt 0:00:27]} 23. Qc3 {[%emt 0:10:13]} Qe7 {[%emt 0:06:42]} 24. b3 {[%emt 0:00:00]} (24. Qe5 $142) 24... Nd7 {[%emt 0:02:35]} 25. Qa5 {[%emt 0:00:00]} Nb6 {[%emt 0:01:11]} 26. Rc2 {[%emt 0:00:00]} (26. Be5 $14) 26... f6 $15 {[%emt 0:01:38]} 27. g4 {[%emt 0:00:00]} Bc8 {[%emt 0:00:19]} 28. g5 {[%emt 0:00:00]} Bf5 {[%emt 0:00:35]} (28... hxg5 $1 $15 29. hxg5 Qf7 30. gxf6 Qh5+ 31. Kg1 gxf6) 29. Rcd2 {[%emt 0:00:00]} (29. Rcc1 $11) 29... hxg5 {[%emt 0:01:36]} 30. hxg5 {[%emt 0:00:00]} Be4 {[%emt 0:00:59]} 31. Qb5 {[%emt 0:00:41]} Qf7 {[%emt 0:00:28]} 32. Ne1 $2 {[%emt 0:02:02] Active counter play!} (32. gxf6 $11 Qh5+ (32... gxf6 33. Rh1 $14) (32... Qxf6 33. Ng5 $11) 33. Kg3) 32... Qh5+ {[%emt 0:01:08]} 33. Kg1 {[%emt 0:00:05]} fxg5 {[%emt 0:00:29]} 34. Bg3 {[%emt 0:00:06]} Bxg2 {[%emt 0:00:39]} 35. Kxg2 {[%emt 0:01:46]} g4 {[%emt 0:00:35]} 36. Nd3 {[%emt 0:00:37][%cal Od3f4]} Rad8 {[%emt 0:01:59]} (36... Qh3+ $1 $19 37. Kg1 Rxe3) 37. Nf4 {[%emt 0:00:40]} Qf7 $1 {[%emt 0:00:16]} 38. Qe2 {[%emt 0:00:39]} Qf5 {[%emt 0:00:20]} 39. Qd3 {[%emt 0:00:03]} ({Better is} 39. Rh1 $15) 39... Re4 $17 {[%emt 0:00:22]} 40. Rh1 {[%emt 0:00:00]} c4 {[%emt 0:00:00]} (40... g5 $17 41. Rh5 Be7) 41. Qc2 $1 $15 {[%emt 0:10:49]} Be7 {[%emt 0:20:15]} 42. Qd1 $2 {[%emt 0:13:19]} (42. Ne2 $17) 42... c3 $1 $19 {[%emt 0:04:41]} 43. Rd3 {[%emt 0:01:55][%cal Oh1h5]} Bf6 {[%emt 0:00:16]} 44. Nh5 {[%emt 0:01:46]} (44. Ne2 $142 Rc8 45. Qc2) 44... Rc8 {[%emt 0:03:01]} 45. Qc2 {[%emt 0:02:57]} Kf7 {[%emt 0:03:23]} (45... Qf3+ 46. Kg1 $17) (45... Re6 $142 46. Nf4 Qe4+ 47. Kg1 Ree8) 46. Bf4 $2 {[%emt 0:01:02]} (46. Nxf6 Qxf6 47. Bf4) 46... Ree8 {[%emt 0:01:24]} 47. Ng3 {[%emt 0:01:12]} Qe6 $1 {[%emt 0:00:01]} 48. Rh5 {[%emt 0:01:02][%cal Oe3e4]} Rh8 {[%emt 0:01:44]} (48... d4 $19 49. Rf5 (49. exd4 $2 Nd5 $19) 49... Kg8) 49. Rxh8 $17 {[%emt 0:01:24]} Rxh8 {[%emt 0:00:01]} 50. Rd1 {[%emt 0:00:43] [#]} (50. Rxc3 $17 Bxc3 51. Qxc3) 50... d4 {[%emt 0:01:12]} 51. exd4 {[%emt 0:00:40]} Nd5 $36 {[%emt 0:00:27][%mdl 2048] Keeping White busy.} 52. Bc1 {[%emt 0:00:29]} Qc6 {[%emt 0:00:33] ( -> ...Ne3+)} 53. Kg1 {[%emt 0:00:31]} Nb4 {[%emt 0:00:30]} 54. Qf5 {[%emt 0:00:17]} c2 {[%emt 0:00:33]} (54... Nxa2 $6 55. Ne4 c2 56. Re1 $11) 55. Rd2 {[%emt 0:00:25] [#]} (55. Rf1 $17) 55... Re8 $1 $19 {[%emt 0:00:26]} (55... Nxa2 56. Rxc2 g6 57. Rxc6 $16 (57. Qxg4 $2 Qxc2 58. Qd7+ Be7 $19)) 56. Kf1 {[%emt 0:00:40] Against Re1+} Qa6+ {[%emt 0:00:34]} (56... Nxa2 57. Rxc2 Qa6+ 58. Kg2 Qb7+ 59. Kh2 (59. d5 g6 $11) 59... Nxc1 60. Rxc1 $11) 57. Ne2 {[%emt 0:00:24]} (57. Re2 $17) 57... Nxa2 {[%emt 0:00:31]} ({Don't do} 57... Qxa2 58. Qh5+ g6 59. Qxg4 $17) 58. Qxc2 $2 {[%emt 0:00:35]} (58. Qd5+ {was worth a try.} Kg6 59. Qc4 Qxc4 60. bxc4) 58... Rc8 $2 {[%emt 0:00:28]} (58... Nxc1 $19 59. Qxc1 Bg5) 59. Qxa2 $11 {[%emt 0:00:24]} Rxc1+ {[%emt 0:00:04]} 60. Kg2 {[%emt 0:00:04]} Qb7+ {[%emt 0:00:55]} 61. d5 {[%emt 0:00:03]} Ra1 {[%emt 0:00:26]} 62. Qc2 {[%emt 0:00:09]} Ra6 {[%emt 0:01:09]} (62... Qb4 $1 $11) 1-0

[Event "Azerbaijan-ch 1st League 2025"]
[Site "Baku"]
[Date "2025.01.07"]
[Round "2.14"]
[White "Idrisov, Tabriz"]
[Black "Baghirov, Mahammad"]
[Result "1/2-1/2"]
[Annotator "TA"]
[ECO "A12"]
[WhiteElo "2073"]
[BlackElo "1932"]
[PlyCount "92"]
[EventDate "2025.01.05"]
[EventType "swiss"]
[EventCountry "AZE"]
[SourceTitle "playchess.com"]
[Source "ChessBase"]
[SourceQuality "1"]
[TimeControl "40/5400+30:1800+30"]

{[%evp 19,92,-9,-8,-14,-8,-20,-23,-27,-24,-36,-7,0,0,-32,24,20,18,-64,-6,8,0,-8,4,-23,-22,-65,-18,-37,-12,-83,-76,-103,-56,-91,-46,-46,0,0,0,0,11,-74,-74,-152,-147,-146,-161,-164,-157,-165,-165,-177,-177,-188,-184,-206,-216,-249,-243,-256,-214,-254,-240,-303,-262,-309,0,0,5,0,0,0,0,0,14]} 1. Nf3 {[%emt 0:04:07]} Nf6 {[%emt 0:00:06]} 2. b3 {[%emt 0:00:04]} d5 {[%emt 0:00:35]} 3. Bb2 {[%emt 0:00:05]} Bf5 {[%emt 0:00:22]} 4. g3 {[%emt 0:04:07]} h6 {[%emt 0:00:06]} 5. Bg2 {[%emt 0:00:04]} e6 {[%emt 0:00:05]} 6. O-O {[%emt 0:00:25]} Be7 {[%emt 0:00:05]} 7. d3 {[%emt 0:00:05]} O-O {[%emt 0:00:20]} 8. Nbd2 {[%emt 0:00:18]} Nbd7 {[%emt 0:00:52]} 9. c4 {[%emt 0:00:53]} c6 {[%emt 0:00:06]} 10. a3 {[%emt 0:02:17]} a5 {[%emt 0:00:52]} 11. cxd5 {[%emt 0:05:24]} exd5 {[%emt 0:00:38]} 12. Nd4 {[%emt 0:00:13]} Bh7 {[%emt 0:00:38]} 13. Bh3 {[%emt 0:01:45]} Re8 {[%emt 0:00:08]} 14. Qc2 {[%emt 0:09:38]} Bd6 {[%emt 0:03:03]} 15. Rfe1 {[%emt 0:04:08]} Ne5 {[%emt 0:01:49]} 16. f4 {[%emt 0:12:40]} Ned7 {[%emt 0:21:19]} ({Black should play} 16... Neg4 $15) 17. e4 $11 {[%emt 0:09:20]} Nc5 {[%emt 0:04:25][%cal Rd5e4]} 18. Nf5 {[%emt 0:01:50]} ({White should play} 18. b4 $11 axb4 19. axb4 Rxa1 20. Rxa1) 18... Bf8 {[%emt 0:02:42]} (18... dxe4 $1 $15 19. Nxe4 Nfxe4 20. dxe4 Bxf5 21. Bxf5 Nd3) 19. e5 {[%emt 0:06:29]} Nfd7 $1 {[%emt 0:00:13]} 20. Kh1 {[%emt 0:07:29]} Ne6 {[%emt 0:03:24]} 21. Rf1 {[%emt 0:02:45]} Qb6 {[%emt 0:04:44][%cal Oa5a4]} 22. Rae1 {[%emt 0:02:45]} Rad8 {[%emt 0:00:51]} (22... a4 $15 {was preferable.} 23. Nd6 axb3 24. Nxb3 Bxd6 25. exd6 c5) 23. Qc3 {[%emt 0:03:35]} Qc5 {[%emt 0:03:18]} 24. Qxc5 {[%emt 0:03:06]} (24. d4 $11 {remains equal.} Qb6 25. Ne3) 24... Ndxc5 $17 {[%emt 0:01:29]} 25. Rf3 {[%emt 0:01:05]} Na6 {[%emt 0:04:05]} (25... d4 $17 26. Kg1 h5) 26. Rfe3 {[%emt 0:04:24]} Bc5 {[%emt 0:03:49]} 27. R3e2 {[%emt 0:02:01]} Bxf5 {[%emt 0:01:30]} (27... Bb6 $15) 28. Bxf5 $11 {[%emt 0:00:02]} Nd4 $36 {[%emt 0:00:08][%mdl 2048] Black is more active.} 29. Bxd4 {[%emt 0:03:49]} Bxd4 {[%emt 0:00:10]} 30. e6 {[%emt 0:01:31]} (30. Nf3 $11 Bc3 31. Rc1) 30... Bc3 $17 {[%emt 0:01:53]} 31. exf7+ {[%emt 0:02:37]} (31. Rc1 $142 Bxd2 32. exf7+ Kxf7 33. Rxd2) 31... Kxf7 {[%emt 0:00:04]} 32. Rxe8 {[%emt 0:00:13]} Rxe8 {[%emt 0:00:06]} 33. Rxe8 {[%emt 0:00:35]} Kxe8 {[%emt 0:00:06][%mdl 4096] Endgame KBN-KBN} 34. Nb1 {[%emt 0:00:55]} d4 {[%emt 0:01:51]} 35. Kg2 {[%emt 0:03:18]} Nc5 {[%emt 0:00:14]} 36. Kf3 {[%emt 0:00:09]} Nxb3 {[%emt 0:00:06]} 37. h4 {[%emt 0:02:01]} Ke7 {[%emt 0:00:34]} 38. g4 {[%emt 0:00:32]} a4 {[%emt 0:00:58]} 39. g5 {[%emt 0:00:25]} b5 {[%emt 0:01:05]} 40. Be4 {[%emt 0:00:00]} Kd6 {[%emt 0:00:00]} ({Resist} 40... hxg5 41. fxg5 Na5 42. Ke2 $17) 41. f5 {[%emt 0:06:08] [#]} hxg5 $1 {[%emt 0:00:28]} 42. h5 {[%emt 0:00:22][%cal Of5f6] [#]} g4+ $2 {[%emt 0:00:49]} 43. Kxg4 $11 {[%emt 0:04:32][%cal Of5f6] aiming for f6!.} Ke5 {[%emt 0:07:44]} 44. Bxc6 {[%emt 0:06:30]} b4 {[%emt 0:00:54]} 45. axb4 {[%emt 0:03:20]} Bxb4 {[%emt 0:00:45] And now ...a3 would win.} 46. Bxa4 {[%emt 0:00:40]} Nd2 {[%emt 0:00:39]} 1/2-1/2

[Event "Azerbaijan-ch 1st League 2025"]
[Site "Baku"]
[Date "2025.01.07"]
[Round "2.15"]
[White "Safarli, Ramzi"]
[Black "Garakhanov, Shamsi"]
[Result "1/2-1/2"]
[Annotator "TA"]
[ECO "D74"]
[WhiteElo "1792"]
[BlackElo "2022"]
[PlyCount "52"]
[EventDate "2025.01.05"]
[EventType "swiss"]
[EventCountry "AZE"]
[SourceTitle "playchess.com"]
[Source "ChessBase"]
[SourceQuality "1"]
[TimeControl "40/5400+30:1800+30"]

{[%evp 14,52,0,0,0,0,0,-37,0,-11,0,-27,-20,-31,0,-5,0,-26,-30,-29,-6,0,10,7,25,33,38,15,60,59,56,66,55,34,39,0,67,0,48,0,57]} 1. d4 {[%emt 0:00:56]} Nf6 {[%emt 0:00:19][%cal Bg8f6,Bf6d7,Bd7b6][%mdl 32]} 2. c4 {[%emt 0:00:05]} g6 {[%emt 0:00:22]} 3. Nc3 {[%emt 0:00:20]} Bg7 {[%emt 0:00:31]} 4. g3 {[%emt 0:00:10]} d5 {[%emt 0:02:14]} 5. Bg2 {[%emt 0:00:38]} dxc4 {[%emt 0:05:31]} 6. Qa4+ {[%emt 0:00:28]} Nfd7 {[%emt 0:02:27]} 7. Nf3 {[%emt 0:01:43]} O-O {[%emt 0:04:06]} 8. Qxc4 {[%emt 0:05:00]} Nb6 {[%emt 0:02:06]} 9. Qc5 {[%emt 0:00:29]} Na6 {[%emt 0:08:05]} 10. Qa3 {[%emt 0:00:41]} Qd6 {[%emt 0:12:57] Black is slightly better.} (10... c5 $5 11. dxc5 Nc4 $11) 11. Qxd6 {[%emt 0:14:44]} exd6 {[%emt 0:00:31]} 12. a3 {[%emt 0:05:34]} Re8 {[%emt 0:03:49]} 13. O-O {[%emt 0:05:05]} d5 {[%emt 0:08:57]} 14. Bf4 {[%emt 0:06:54]} c6 {[%emt 0:00:38]} 15. e3 {[%emt 0:06:33]} h6 {[%emt 0:03:19]} 16. h4 {[%emt 0:04:05]} Bf5 {[%emt 0:08:00]} 17. Nd2 {[%emt 0:05:52][%cal Bf3d2,Bd2b3,Bb3a5][%mdl 32]} Rad8 {[%emt 0:02:28]} 18. Bf3 {[%emt 0:03:28]} h5 {[%emt 0:06:04]} 19. Be2 {[%emt 0:02:26]} Nb8 {[%emt 0:01:42]} 20. Nb3 {[%emt 0:08:02]} Re7 {[%emt 0:05:58]} 21. Na5 {[%emt 0:01:33] Prevents Nc4.} Kh7 {[%emt 0:02:49]} 22. b4 {[%emt 0:07:30]} Bh6 {[%emt 0:03:40]} 23. Be5 {[%emt 0:01:19] Wards off Bxf4} Bg7 {[%emt 0:00:19] Dodges Bf6} 24. Bf4 {[%emt 0:01:53]} Bh6 $1 {[%emt 0:00:22]} 25. Be5 {[%emt 0:02:20] White is more active.} Bg7 {[%emt 0:00:22] Wards off Bf6} 26. Bf4 {[%emt 0:00:07]} Bh6 $1 {[%emt 0:00:02] Weighted Error Value: White=0.18 (very precise) /Black=0.09 (flawless) .  Inaccurate:     	White=3     	Black=3      OK:         	White=6     	Black=6      Best:        	White=1     	---        Strong:       	---       	Black=2} 1/2-1/2